bitfinex-derivatives/quotes_ETHF0:USTF0_20250524
["timestamp","ask_amount","ask_price","bid_price","bid_amount"]
[1748057794640,15.496,2549.2,2549.1,2.14343]
[1748057794840,15.496,2549.2,2549.0,4.38455]
[1748057795137,16.96822,2549.2,2549.0,2.3837]
[1748057795337,16.96822,2549.2,2549.1,1.2854]
[1748057795840,16.96822,2549.2,2549.1,2.06984]
[1748057796743,0.78446,2549.1,2549.0,0.78446]
[1748057797041,16.28044,2549.2,2549.1,0.78444]
[1748057797438,15.496,2549.2,2549.1,0.78444]
[1748057797640,16.2804,2549.2,2549.1,0.78444]
[1748057797944,0.78445,2549.1,2549.0,0.78444]
[1748057798243,0.78445,2549.1,2549.0,2.77624]
[1748057798444,16.91682,2549.2,2549.1,0.78444]
[1748057798741,16.91682,2549.2,2549.1,2.12714]
[1748057799642,16.91682,2549.2,2549.1,1.3427]
[1748057801040,18.28282,2549.2,2549.1,1.3427]
[1748057802845,35.93482,2549.2,2549.1,1.3427]
[1748057805152,35.93482,2549.2,2549.1,2.12714]
[1748057806050,35.93482,2549.2,2549.1,1.3427]
[1748057806243,35.93482,2549.2,2549.1,2.12714]
[1748057806444,35.93482,2549.2,2549.1,1.3427]
[1748057807052,34.56882,2549.2,2549.1,1.3427]
[1748057808258,34.56882,2549.2,2549.1,2.12714]
[1748057808852,34.56882,2549.2,2549.1,1.3427]
[1748057809947,0.78447,2549.0,2548.9,0.3923]
[1748057810147,0.78447,2549.0,2548.9,1.6842]
[1748057811254,0.78447,2549.0,2548.9,2.4687]
[1748057815358,1.47447,2549.0,2548.9,2.4687]
[1748057817554,1.47447,2549.0,2548.9,2.0764]
[1748057818156,1.47447,2549.0,2548.9,1.2919]
[1748057820258,1.47447,2549.0,2548.9,3.37135852]
[1748057820560,1.47447,2549.0,2548.9,2.58685852]
[1748057820760,1.47447,2549.0,2548.9,1.29495852]
[1748057821162,2.78887,2549.0,2548.9,1.29495852]
[1748057821961,0.78453,2548.8,2548.7,5.38884]
[1748057822763,1.45763,2548.8,2548.7,5.38884]
[1748057823867,1.45763,2548.8,2548.7,4.6043]
[1748057824058,1.45763,2548.8,2548.7,6.68280408]
[1748057824359,16.94363,2548.8,2548.7,1.29394408]
[1748057826668,0.78459,2548.6,2548.5,1.2752]
[1748057826968,18.43859,2548.6,2548.5,1.2752]
[1748057827459,19.08219,2548.6,2548.5,1.2752]
[1748057827659,0.78462,2548.5,2548.4,0.6847]
[1748057827957,2.81052,2548.5,2548.4,0.6847]
[1748057828159,0.78465,2548.4,2548.3,2.09537]
[1748057828455,0.78465,2548.4,2548.3,2.76427]
[1748057828972,18.43865,2548.4,2548.3,2.76427]
[1748057829358,0.6436,2548.6,2548.3,1.9796]
[1748057829559,0.00587982,2548.8,2548.7,0.78456]
[1748057829764,0.00587982,2548.8,2548.7,3.99236]
[1748057830279,0.00587982,2548.8,2548.7,10.95816]
[1748057831582,0.00587982,2548.8,2548.7,13.32168302]
[1748057832682,0.00587982,2548.8,2548.7,8.32168302]
[1748057833381,0.00587982,2548.8,2548.7,13.32168302]
[1748057833777,0.00587982,2548.8,2548.7,8.32168302]
[1748057835385,0.00587982,2548.8,2548.7,7.25058216]
[1748057835781,0.00587982,2548.8,2548.7,12.25058216]
[1748057837086,0.00587982,2548.8,2548.7,13.32168302]
[1748057838387,0.00587982,2548.8,2548.7,8.32168302]
[1748057840289,0.00587982,2548.8,2548.7,7.25058216]
[1748057844586,2.74740982,2548.8,2548.7,5.81092216]
[1748057844786,2.74740982,2548.8,2548.7,2.60312216]
[1748057845891,2.74740982,2548.8,2548.7,1.3107]
[1748057846087,6.96287982,2548.8,2548.5,1.29143083]
[1748057846288,0.78459,2548.6,2548.5,1.29143083]
[1748057846487,5.78459,2548.6,2548.5,1.29143083]
[1748057846692,0.78462,2548.5,2548.4,1.29143083]
[1748057846887,35.30652,2548.5,2548.4,1.29143083]
[1748057847094,2.18752,2548.5,2548.4,2.60563083]
[1748057847293,35.30652,2548.5,2548.4,2.60563083]
[1748057848194,35.30652,2548.5,2548.4,1.29143083]
[1748057853400,0.78468,2548.3,2548.2,2.49119]
[1748057854610,2.12538,2548.3,2548.2,2.49119]
[1748057855103,2.12538,2548.3,2548.2,1.17699]
[1748057855494,2.12538,2548.3,2548.2,2.48649]
[1748057855690,2.11833416,2548.3,2548.2,2.48649]
[1748057856194,19.77433416,2548.3,2548.2,2.48649]
[1748057856804,19.77433416,2548.3,2548.2,2.48651]
[1748057857201,0.00587982,2548.8,2548.3,1.96171]
[1748057857507,0.00587982,2548.8,2548.7,0.78456]
[1748057857898,0.79040982,2548.8,2548.7,0.78456]
[1748057858800,0.78459,2548.6,2548.5,3.2078]
[1748057859005,3.2078,2548.6,2548.2,0.78469]
[1748057859196,0.78466,2548.4,2548.3,0.78465]
[1748057859495,33.13287982,2548.8,2548.7,0.78456]
[1748057859701,33.79637982,2548.8,2548.7,0.78456]
[1748057859903,35.98430982,2548.8,2548.7,0.78456]
[1748057860106,0.78457,2548.7,2548.6,0.78456]
[1748057860296,2.18797,2548.7,2548.6,0.78456]
[1748057860802,1.4034,2548.7,2548.6,0.78456]
[1748057861593,1.4034,2548.7,2548.3,3.2078]
[1748057861994,0.78465,2548.4,2548.3,3.99246]
[1748057862898,0.78468,2548.3,2548.2,2.1606]
[1748057864005,1.9574,2548.5,2548.0,4.5131]
[1748057864206,0.668,2548.2,2548.1,1.17702]
[1748057864505,18.324,2548.2,2548.1,2.55722]
[1748057867508,18.324,2548.2,2548.1,2.16492]
[1748057868102,19.6064,2548.2,2548.1,2.16492]
[1748057868899,0.668,2548.2,2548.1,2.16492]
[1748057869198,18.325,2548.2,2548.1,2.16492]
[1748057869608,18.325,2548.2,2548.1,2.24041626]
[1748057869809,17.657,2548.2,2548.1,2.24041626]
[1748057870612,15.457,2548.4,2548.3,0.78468]
[1748057870811,33.114,2548.4,2548.3,0.78468]
[1748057871119,0.78465,2548.4,2548.3,2.18718]
[1748057871311,18.44165,2548.4,2548.3,2.18718]
[1748057871508,17.657,2548.4,2548.3,2.18718]
[1748057873605,15.457,2548.5,2548.4,0.78465]
[1748057873906,15.457,2548.5,2548.4,2.14995]
[1748057873907,33.114,2548.5,2548.4,2.14995]
[1748057874107,33.114,2548.5,2548.4,2.80455]
[1748057874918,15.457,2548.5,2548.4,3.47045]
[1748057875103,33.114,2548.5,2548.4,3.47045]
[1748057875607,1.46221982,2548.8,2548.7,0.78456]
[1748057875815,34.57621982,2548.8,2548.7,0.78456]
[1748057876113,33.79167982,2548.8,2548.7,0.78456]
[1748057876910,15.46287982,2548.8,2548.7,0.78456]
[1748057877114,33.11987982,2548.8,2548.7,0.78456]
[1748057877713,15.46287982,2548.8,2548.7,0.78456]
[1748057877916,33.11987982,2548.8,2548.7,0.78456]
[1748057878409,0.00587982,2548.8,2548.7,0.78456]
[1748057878607,17.66287982,2548.8,2548.7,3.99236]
[1748057878816,0.00587982,2548.8,2548.7,3.99236]
[1748057879111,17.66287982,2548.8,2548.7,3.99236]
[1748057879915,17.66287982,2548.8,2548.7,5.28121809]
[1748057881213,17.66287982,2548.8,2548.7,3.99236]
[1748057881609,0.00587982,2548.8,2548.7,3.99236]
[1748057884719,0.00587982,2548.8,2548.7,5.27890397]
[1748057886120,0.79040982,2548.8,2548.7,4.49434397]
[1748057886714,2.85840982,2548.8,2548.7,4.49434397]
[1748057886915,2.07387982,2548.8,2548.7,5.27890397]
[1748057887116,18.31807982,2548.8,2548.7,5.27890397]
[1748057887616,18.31807982,2548.8,2548.7,3.99236]
[1748057892318,0.66307982,2548.8,2548.7,3.99236]
[1748057892618,18.31807982,2548.8,2548.7,3.99236]
[1748057894718,19.60287982,2548.8,2548.7,3.99236]
[1748057895819,18.31807982,2548.8,2548.7,3.99236]
[1748057897122,0.00587982,2548.8,2548.7,3.99236]
[1748057897323,17.65987982,2548.8,2548.7,3.99236]
[1748057898221,0.00587982,2548.8,2548.7,3.99236]
[1748057900316,0.00587982,2548.8,2548.7,5.27956695]
[1748057905716,0.00587982,2548.8,2548.7,6.68566695]
[1748057906517,1.3695,2549.3,2549.2,0.7844]
[1748057907124,34.4586,2549.4,2549.3,0.78437]
[1748057907720,17.654,2549.4,2549.3,0.78437]
[1748057907926,17.654,2549.4,2549.3,2.11127]
[1748057908119,1.97637982,2549.6,2549.5,0.78431]
[1748057908324,17.65987982,2549.6,2549.5,0.78431]
[1748057909527,0.00587982,2549.6,2549.5,2.07151695]
[1748057910831,0.00587982,2549.6,2549.5,0.78431]
[1748057917325,0.00587982,2549.6,2549.5,0.85980626]
[1748057917627,15.442,2550.0,2549.9,0.78419]
[1748057917822,16.1071,2550.0,2549.9,0.78419]
[1748057918228,16.1071,2550.0,2549.9,2.17149]
[1748057918426,4.929,2550.5,2550.1,1.96027]
[1748057918735,20.4184,2550.4,2550.3,0.78407]
[1748057918932,2.7684,2550.4,2550.3,0.78407]
[1748057919131,20.4184,2550.4,2550.3,0.78407]
[1748057919530,1.3677,2550.4,2550.3,0.78407]
[1748057919729,33.092,2550.5,2550.4,0.78403]
[1748057921241,20.86167982,2550.6,2550.5,0.784]
[1748057921630,0.00587982,2550.6,2550.5,0.784]
[1748057921829,0.00587982,2550.6,2550.5,2.196]
[1748057922138,1.39287982,2550.6,2550.5,0.784]
[1748057925238,1.39287982,2550.6,2550.5,2.1015]
[1748057928048,0.00587982,2550.6,2550.5,2.1015]
[1748057929550,3.2078,2551.2,2551.1,0.78382]
[1748057930048,3.99161,2551.2,2551.0,0.78385]
[1748057930348,2.0916,2551.1,2551.0,0.78385]
[1748057930648,2.87542,2551.1,2551.0,0.78385]
[1748057930850,2.0916,2551.1,2551.0,0.78385]
[1748057932759,2.87542,2551.1,2551.0,0.78385]
[1748057932954,2.0916,2551.1,2551.0,0.78385]
[1748057933657,0.78386,2551.0,2550.8,1.41757982]
[1748057933858,0.6472,2550.9,2550.8,2.20148982]
[1748057934154,1.43108,2550.9,2550.8,0.00587982]
[1748057934458,19.07408,2550.9,2550.8,0.00587982]
[1748057936655,22.28188,2550.9,2550.8,0.00587982]
[1748057939558,27.28188,2550.9,2550.8,0.00587982]
[1748057940060,28.66378,2550.9,2550.8,0.00587982]
[1748057942561,11.02078,2550.9,2550.8,0.00587982]
[1748057942755,39.08578,2550.9,2550.8,0.00587982]
[1748057943965,6.02078,2550.9,2550.8,0.78978982]
[1748057944165,38.3029,2550.9,2550.8,0.78978982]
[1748057944367,39.08678,2550.9,2550.8,0.78978982]
[1748057945569,39.08678,2550.9,2550.8,0.08137608]
[1748057947863,35.87898,2550.9,2550.8,0.08137608]
[1748057948271,18.42688,2550.9,2550.8,0.86528608]
[1748057948570,18.42688,2550.9,2550.8,2.17918608]
[1748057949076,21.63468,2550.9,2550.8,1.39527608]
[1748057949369,23.00648,2550.9,2550.8,1.39527608]
[1748057954071,19.79868,2550.9,2550.8,1.39527608]
[1748057955170,19.79868,2550.9,2550.8,2.17918608]
[1748057955371,19.79868,2550.9,2550.8,1.39527608]
[1748057957072,19.79868,2550.9,2550.8,2.17918608]
[1748057957567,19.79868,2550.9,2550.8,1.39527608]
[1748057957773,19.79868,2550.9,2550.8,2.17918608]
[1748057957972,19.79868,2550.9,2550.8,1.39527608]
[1748057958976,18.42688,2550.9,2550.8,1.39527608]
[1748057959577,18.42688,2550.9,2550.8,2.17918608]
[1748057959872,18.42688,2550.9,2550.8,1.39527608]
[1748057961980,18.42688,2550.9,2550.8,2.17918608]
[1748057962780,0.78388,2550.9,2550.8,2.17918608]
[1748057963078,18.42588,2550.9,2550.8,1.39527608]
[1748057963979,18.6318,2551.0,2550.8,1.39527608]
[1748057964180,18.62667982,2551.3,2550.9,1.95965]
[1748057964382,18.62667982,2551.3,2551.2,0.78379]
[1748057964682,19.41043982,2551.3,2551.2,0.78379]
[1748057964888,18.62667982,2551.3,2551.2,0.78379]
[1748057965485,3.21367982,2551.3,2551.2,0.78379]
[1748057968189,0.00587982,2551.3,2551.2,0.78379]
[1748057973488,0.00587982,2551.3,2551.2,2.13729]
[1748057974293,0.00587982,2551.3,2551.2,1.3535]
[1748057974482,0.00587982,2551.3,2551.0,1.3367]
[1748057974483,0.78381,2551.2,2551.0,2.12054]
[1748057974683,2.15601,2551.2,2551.0,2.12054]
[1748057974885,1.3722,2551.2,2551.1,0.78382]
[1748057975084,0.00587982,2551.3,2551.2,0.78379]
[1748057975988,0.00587982,2551.3,2551.2,0.85928626]
[1748057979190,0.78963982,2551.3,2551.2,0.85928626]
[1748057979492,0.00587982,2551.3,2551.2,0.85928626]
[1748057979681,0.00587982,2551.3,2551.2,2.16278626]
[1748057991306,0.78963982,2551.3,2551.2,2.16278626]
[1748057991613,0.78963982,2551.3,2551.2,0.85928626]
[1748057991798,1.43433982,2551.3,2551.2,0.85928626]
[1748057992001,2.82493982,2551.3,2551.2,0.85928626]
[1748057995410,2.82493982,2551.3,2551.2,0.07549626]
[1748057996205,0.78382,2551.1,2551.0,0.78383]
[1748057997011,1.45182,2551.1,2551.0,0.78383]
[1748057998402,2.85002,2551.1,2551.0,0.78383]
[1748057999711,2.0662,2551.1,2551.0,0.78383]
[1748058000311,0.65057982,2551.3,2551.2,0.78379]
[1748058000513,18.94147982,2551.3,2551.2,0.78379]
[1748058000714,20.32017982,2551.3,2551.2,0.78379]
[1748058000914,21.10393982,2551.3,2551.2,0.78379]
[1748058001209,0.78379,2551.2,2551.1,2.1464]
[1748058001414,2.16249,2551.2,2551.1,0.7838]
[1748058001615,1.3787,2551.2,2551.1,0.7838]
[1748058002315,2.16249,2551.2,2551.1,0.7838]
[1748058002513,0.78382,2551.1,2551.0,1.3626]
[1748058002717,0.78385,2551.0,2550.9,0.78388]
[1748058002918,0.6829,2551.0,2550.9,0.78388]
[1748058003118,2.0616,2551.0,2550.9,0.78388]
[1748058003319,2.84545,2551.0,2550.9,0.78388]
[1748058004515,0.78388,2550.9,2550.8,0.00587982]
[1748058004715,2.80618,2550.9,2550.8,0.78978982]
[1748058005218,2.0223,2550.9,2550.8,0.78978982]
[1748058006315,20.44618,2550.9,2550.8,0.78978982]
[1748058006510,19.6623,2550.9,2550.8,0.78978982]
[1748058007218,20.44618,2550.9,2550.8,0.78978982]
[1748058007717,20.44618,2550.9,2550.8,0.00587982]
[1748058008016,20.44618,2550.9,2550.8,0.78978982]
[1748058009020,2.80618,2550.9,2550.8,0.78978982]
[1748058009210,20.44618,2550.9,2550.8,0.78978982]
[1748058010715,20.44618,2550.9,2550.8,0.00587982]
[1748058012323,0.6663,2550.9,2550.8,0.78978982]
[1748058012524,16.0799,2551.0,2550.9,0.78388]
[1748058012715,33.7209,2551.0,2550.9,0.78388]
[1748058012914,33.7209,2551.0,2550.9,2.10148]
[1748058013219,33.7209,2551.0,2550.8,0.00587982]
[1748058013418,2.16178,2550.9,2550.8,0.00587982]
[1748058015222,2.16178,2550.9,2550.8,0.78978982]
[1748058015424,1.3779,2550.9,2550.8,0.78978982]
[1748058015925,1.46677,2551.0,2550.9,0.78388]
[1748058016122,3.2078,2551.1,2551.0,0.78385]
[1748058016427,36.2468,2551.1,2551.0,0.78385]
[1748058016627,36.2468,2551.1,2550.9,2.07767]
[1748058016929,0.78385,2551.0,2550.9,2.07767]
[1748058019626,38.41564,2551.1,2551.0,0.78385]
[1748058019827,38.41564,2551.1,2551.0,2.10235]
[1748058020124,37.03164,2551.1,2551.0,2.74125]
[1748058020330,36.2478,2551.1,2551.0,2.74125]
[1748058020527,37.03162,2551.1,2551.0,3.37895]
[1748058020824,18.6058,2551.1,2551.0,3.37895]
[1748058021030,15.398,2551.1,2551.0,3.37895]
[1748058021223,33.04,2551.1,2551.0,3.37895]
[1748058022623,33.039,2551.1,2551.0,3.37895]
[1748058024924,0.78965982,2551.3,2551.2,0.78379]
[1748058024925,0.00587982,2551.3,2551.2,0.78379]
[1748058025131,18.43063982,2551.3,2551.2,0.78379]
[1748058025523,0.78379,2551.2,2551.1,1.2726]
[1748058025722,2.81189,2551.2,2551.1,1.2726]
[1748058026532,2.0281,2551.2,2551.1,2.05642]
[1748058026730,0.6462,2551.2,2551.1,2.05642]
[1748058026923,18.43065982,2551.3,2551.2,0.78379]
[1748058027123,18.43065982,2551.3,2551.2,2.05639]
[1748058027333,17.64687982,2551.3,2551.2,2.05639]
[1748058027531,18.43063982,2551.3,2551.2,2.05639]
[1748058027831,17.64687982,2551.3,2551.2,2.05639]
[1748058030934,0.00587982,2551.3,2551.2,2.05639]
[1748058031232,18.42963982,2551.3,2551.2,2.05639]
[1748058031433,19.80133982,2551.3,2551.2,2.05639]
[1748058032133,0.00587982,2551.3,2551.2,2.05639]
[1748058036151,0.00587982,2551.3,2551.2,1.2726]
[1748058036152,0.78963982,2551.3,2551.2,1.2726]
[1748058037239,2.82993982,2551.3,2551.2,2.05639]
[1748058037734,2.82993982,2551.3,2551.2,1.2726]
[1748058038131,2.82993982,2551.3,2551.2,2.05639]
[1748058038838,2.82993982,2551.3,2551.2,2.13188626]
[1748058039039,2.82993982,2551.3,2551.2,0.85928626]
[1748058039240,2.82993982,2551.3,2551.2,0.07549626]
[1748058039440,18.20893982,2551.3,2551.2,0.07549626]
[1748058040140,18.20893982,2551.3,2551.2,0.85928626]
[1748058044141,18.20893982,2551.3,2551.2,0.07549626]
[1748058051858,23.20893982,2551.3,2551.2,0.07549626]
[1748058053558,18.20893982,2551.3,2551.2,0.07549626]
[1748058054653,23.20893982,2551.3,2551.2,0.07549626]
[1748058055349,18.20893982,2551.3,2551.2,0.07549626]
[1748058057859,23.13793982,2551.3,2551.2,0.07549626]
[1748058059371,23.13793982,2551.3,2550.8,0.00587982]
[1748058059372,0.78388,2550.9,2550.8,0.00587982]
[1748058059674,19.36068,2550.9,2550.8,0.00587982]
[1748058060376,20.69818,2550.9,2550.8,0.00587982]
[1748058062371,0.78413,2550.1,2549.9,1.29143083]
[1748058062575,33.79513,2550.1,2549.9,1.29143083]
[1748058062871,0.78416,2550.0,2549.9,1.29143083]
[1748058063070,1.47006,2550.0,2549.9,2.60073083]
[1748058063472,2.86806,2550.0,2549.9,1.29143083]
[1748058064474,7.86806,2550.0,2549.9,1.29143083]
[1748058064670,0.78422,2549.8,2549.7,1.94083246]
[1748058064872,3.99202,2549.8,2549.7,1.6e-06]
[1748058065176,8.99202,2549.8,2549.7,1.6e-06]
[1748058065476,42.00702,2549.8,2549.7,1.6e-06]
[1748058065675,8.99202,2549.8,2549.7,1.6e-06]
[1748058065875,43.34932,2549.8,2549.7,1.6e-06]
[1748058066174,37.00702,2549.8,2549.7,1.6e-06]
[1748058066874,37.00702,2549.8,2549.7,0.6564016]
[1748058067069,37.00702,2549.8,2549.7,1.6e-06]
[1748058067476,38.34932,2549.8,2549.7,1.6e-06]
[1748058068374,43.34932,2549.8,2549.7,1.6e-06]
[1748058070082,48.27832,2549.8,2549.7,1.6e-06]
[1748058070378,43.27832,2549.8,2549.7,1.6e-06]
[1748058070879,43.28332,2549.8,2549.7,1.6e-06]
[1748058072581,25.63432,2549.8,2549.7,1.6e-06]
[1748058072778,24.29202,2549.8,2549.7,1.6e-06]
[1748058073080,41.94202,2549.8,2549.7,1.6e-06]
[1748058074079,41.94202,2549.8,2549.7,0.6917016]
[1748058076685,24.29202,2549.8,2549.7,0.6917016]
[1748058076982,41.94302,2549.8,2549.7,0.6917016]
[1748058077382,8.92102,2549.8,2549.7,0.6917016]
[1748058077679,41.94902,2549.8,2549.7,0.6917016]
[1748058078085,8.92102,2549.8,2549.7,0.6917016]
[1748058078285,41.94902,2549.8,2549.7,0.6917016]
[1748058078880,3.99202,2549.8,2549.7,0.6917016]
[1748058079080,37.02002,2549.8,2549.7,0.6917016]
[1748058080287,37.02002,2549.8,2549.7,1.6e-06]
[1748058080689,39.05772,2549.8,2549.7,1.6e-06]
[1748058082585,39.05772,2549.8,2549.7,1.3730016]
[1748058084294,43.98672,2549.8,2549.7,1.3730016]
[1748058085092,40.77892,2549.8,2549.7,1.3730016]
[1748058085293,43.98672,2549.8,2549.7,1.3730016]
[1748058085893,26.33572,2549.8,2549.7,1.3730016]
[1748058086094,43.98772,2549.8,2549.7,1.3730016]
[1748058087295,8.92102,2549.8,2549.7,1.3730016]
[1748058087483,41.94102,2549.8,2549.7,1.3730016]
[1748058089496,41.94102,2549.8,2549.7,1.44849786]
[1748058090195,3.99202,2549.8,2549.7,1.44849786]
[1748058090399,37.01202,2549.8,2549.7,1.44849786]
[1748058090589,37.01202,2549.8,2549.7,1.3730016]
[1748058107200,38.31692,2549.8,2549.7,1.6e-06]
[1748058112804,20.66492,2549.8,2549.7,1.6e-06]
[1748058113000,38.31792,2549.8,2549.7,1.6e-06]
[1748058113812,43.24692,2549.8,2549.7,1.6e-06]
[1748058115310,44.34730659,2549.8,2549.7,1.6e-06]
[1748058117004,26.69430659,2549.8,2549.7,1.6e-06]
[1748058117306,44.34730659,2549.8,2549.7,1.6e-06]
[1748058119502,45.01020659,2549.8,2549.7,1.6e-06]
[1748058121710,43.90982,2549.8,2549.7,1.6e-06]
[1748058122514,26.25682,2549.8,2549.7,1.6e-06]
[1748058122708,43.90982,2549.8,2549.7,1.6e-06]
[1748058123110,42.60492,2549.8,2549.7,1.6e-06]
[1748058124212,8.92102,2549.8,2549.7,1.6e-06]
[1748058124410,24.28302,2549.8,2549.7,1.6e-06]
[1748058124714,3.99202,2549.8,2549.7,1.6e-06]
[1748058124909,37.00702,2549.8,2549.7,1.6e-06]
[1748058125814,37.00702,2549.8,2549.7,2.0291016]
[1748058127708,37.65052,2549.8,2549.7,2.0291016]
[1748058129609,37.65052,2549.8,2549.7,1.3851016]
[1748058129814,39.71812,2549.8,2549.7,1.6e-06]
[1748058131416,44.64712,2549.8,2549.7,1.6e-06]
[1748058135513,25.72017521,2549.8,2549.7,1.6e-06]
[1748058135718,42.06107521,2549.8,2549.7,1.6e-06]
[1748058136017,42.06107521,2549.8,2549.7,1.4078016]
[1748058138814,9.04607521,2549.8,2549.7,1.4078016]
[1748058139019,42.06107521,2549.8,2549.7,1.4078016]
[1748058140320,37.13207521,2549.8,2549.7,1.4078016]
[1748058141024,37.66231225,2549.8,2549.7,1.4078016]
[1748058145231,3.86309225,2549.8,2549.7,6.4078016]
[1748058145433,4.64731225,2549.8,2549.7,6.4078016]
[1748058145930,3.86309225,2549.8,2549.7,7.1920516]
[1748058146133,1.43951225,2549.8,2549.7,7.1920516]
[1748058146337,0.65529225,2549.8,2549.7,7.1920516]
[1748058146632,1.43951225,2549.8,2549.7,6.4078016]
[1748058147835,0.78422,2549.8,2549.7,6.4078016]
[1748058150137,0.78422,2549.8,2549.7,1.4078016]
[1748058150324,1.47662,2549.8,2549.7,1.4078016]
[1748058150528,2.75622,2549.8,2549.7,1.4078016]
[1748058150841,0.78428,2549.6,2549.5,0.675]
[1748058151031,0.78434,2549.4,2549.3,0.6593]
[1748058151230,0.78437,2549.3,2549.2,1.07110086]
[1748058151431,5.93717,2549.3,2549.2,1.07110086]
[1748058151736,0.7844,2549.2,2549.1,0.6943]
[1748058154542,0.7844,2549.2,2549.1,2.0009]
[1748058163645,2.0677,2549.2,2549.1,2.0009]
[1748058163941,2.7234,2549.2,2549.1,2.0009]
[1748058164151,2.7234,2549.2,2549.0,0.6601]
[1748058164152,0.78443,2549.1,2549.0,0.6601]
[1748058164353,0.78443,2549.1,2549.0,2.659]
[1748058164851,0.78447,2549.0,2548.9,0.00587982]
[1748058165152,19.34527,2549.0,2548.9,0.00587982]
[1748058169557,19.34527,2549.0,2548.9,0.08137608]
[1748058170558,19.34527,2549.0,2548.9,0.00587982]
[1748058172160,37.00027,2549.0,2548.9,0.00587982]
[1748058173562,37.00027,2549.0,2548.9,0.08137608]
[1748058178669,37.00027,2549.0,2548.9,0.00587982]
[1748058179668,37.00027,2549.0,2548.9,0.08137608]
[1748058181866,19.34527,2549.0,2548.9,0.08137608]
[1748058182068,37.00127,2549.0,2548.9,0.08137608]
[1748058182667,37.00127,2549.0,2548.9,0.00587982]
[1748058183668,37.00127,2549.0,2548.9,0.08137608]
[1748058184671,37.00127,2549.0,2548.9,0.00587982]
[1748058185973,19.34527,2549.0,2548.9,0.00587982]
[1748058186271,37.00127,2549.0,2548.9,0.00587982]
[1748058191776,33.79347,2549.0,2548.9,0.00587982]
[1748058192077,37.00127,2549.0,2548.9,0.00587982]
[1748058198085,33.79347,2549.0,2548.9,0.00587982]
[1748058198288,37.00127,2549.0,2548.9,0.00587982]
[1748058213599,38.37647,2549.0,2548.9,0.00587982]
[1748058216903,19.34527,2549.0,2548.9,0.00587982]
[1748058217103,36.98127,2549.0,2548.9,0.00587982]
[1748058217403,36.98127,2549.0,2548.9,1.37667982]
[1748058217903,36.98127,2549.0,2548.9,0.00587982]
[1748058218202,38.27467,2549.0,2548.9,0.00587982]
[1748058224905,43.27467,2549.0,2548.9,9.82e-06]
[1748058225208,48.20367,2549.0,2548.9,9.82e-06]
[1748058227910,48.85896225,2549.0,2548.9,9.82e-06]
[1748058228410,48.85896225,2549.0,2548.9,0.07550608]
[1748058234415,49.30409284,2549.0,2548.9,0.07550608]
[1748058236013,11.31509284,2549.0,2548.9,0.07550608]
[1748058236308,42.99669284,2549.0,2548.9,0.07550608]
[1748058237709,41.89627,2549.0,2548.9,0.07550608]
[1748058240418,36.96727,2549.0,2548.9,9.82e-06]
[1748058241815,19.30827,2549.0,2548.9,9.82e-06]
[1748058242114,37.62243963,2549.0,2548.9,9.82e-06]
[1748058243619,37.62243963,2549.0,2548.9,1.32450982]
[1748058243919,37.62243963,2549.0,2548.9,2.70980982]
[1748058245517,37.62243963,2549.0,2548.9,2.78530608]
[1748058247324,36.96727,2549.0,2548.9,2.78530608]
[1748058247617,36.96727,2549.0,2548.9,2.70980982]
[1748058248517,36.96727,2549.0,2548.9,2.78530608]
[1748058250017,3.99227,2549.0,2548.9,2.78530608]
[1748058250225,18.5228,2549.0,2548.9,2.78530608]
[1748058250519,19.30727,2549.0,2548.9,2.78530608]
[1748058250711,36.1818,2549.0,2548.9,2.78530608]
[1748058251924,3.99227,2549.0,2548.9,2.78530608]
[1748058252223,36.96527,2549.0,2548.9,2.78530608]
[1748058253925,19.30727,2549.0,2548.9,2.78530608]
[1748058254127,36.96427,2549.0,2548.9,2.78530608]
[1748058254321,3.2078,2549.3,2548.9,10.99310608]
[1748058254527,17.657,2549.5,2549.2,0.7844]
[1748058254827,18.44133,2549.5,2549.3,3.50436]
[1748058255026,18.44133,2549.5,2549.4,1.3924]
[1748058255228,15.97016963,2549.6,2549.4,1.3924]
[1748058255229,1.43945963,2549.6,2549.4,2.17674]
[1748058255528,15.97016963,2549.6,2549.5,0.78431]
[1748058255728,34.41044963,2549.6,2549.5,2.17671]
[1748058256027,34.41044963,2549.6,2549.5,1.3924]
[1748058256217,34.41044963,2549.6,2549.5,2.17671]
[1748058256421,1.43944963,2549.6,2549.5,2.17671]
[1748058256620,19.09544963,2549.6,2549.5,2.17671]
[1748058258135,18.44028,2549.6,2549.5,2.17671]
[1748058259327,17.656,2549.6,2549.5,2.17671]
[1748058260324,16.09726,2549.7,2549.6,0.78428]
[1748058260325,15.313,2549.7,2549.6,0.78428]
[1748058260526,32.967,2549.7,2549.6,2.08538]
[1748058261427,32.967,2549.7,2549.6,1.3011]
[1748058261627,33.75125,2549.7,2549.6,1.3011]
[1748058262131,33.75125,2549.7,2549.6,2.08538]
[1748058263034,33.75125,2549.7,2549.6,1.3011]
[1748058263732,35.76665,2549.7,2549.6,1.3011]
[1748058265436,0.78433,2549.5,2549.3,2.11196]
[1748058265641,0.78433,2549.5,2549.4,2.08344]
[1748058265939,2.12791,2549.6,2549.4,2.08344]
[1748058266342,2.1279,2549.6,2549.4,2.08344]
[1748058266939,1.3436,2549.6,2549.5,0.78431]
[1748058267545,1.3436,2549.6,2549.4,1.2991]
[1748058267742,0.78431,2549.5,2549.4,1.2991]
[1748058268545,0.78431,2549.5,2549.4,2.08344]
[1748058268843,2.1279,2549.6,2549.4,2.08344]
[1748058269338,1.309,2549.5,2549.4,2.08344]
[1748058271038,2.09331,2549.5,2549.4,2.08344]
[1748058271345,2.09331,2549.5,2549.4,1.2991]
[1748058272747,0.78428,2549.6,2549.4,1.2991]
[1748058272950,17.652,2549.5,2549.4,2.08344]
[1748058273647,18.43631,2549.5,2549.4,2.08344]
[1748058273843,3.2078,2549.7,2549.6,0.78428]
[1748058274045,36.15967982,2550.0,2549.9,0.78419]
[1748058274446,36.94383982,2550.0,2549.9,0.78419]
[1748058274749,0.78419,2549.9,2549.8,2.7114]
[1748058274948,0.78419,2549.9,2549.8,1.9272]
[1748058275251,2.72389,2549.9,2549.8,2.71142]